bitfinex/quotes_BTCUSD_20230405
["timestamp","ask_amount","ask_price","bid_price","bid_amount"]
[1680712715452,4.267e-05,27971.0,27970.0,1.10942726]
[1680712715667,4.267e-05,27971.0,27970.0,1.15555048]
[1680712715914,0.02386,27981.0,27971.0,0.15]
[1680712716159,0.02365,27981.0,27976.0,0.17872]
[1680712716376,0.02365,27981.0,27977.0,0.49660737]
[1680712716586,0.02386,27981.0,27978.0,0.3]
[1680712716792,0.02386,27981.0,27979.0,0.35471056]
[1680712717412,0.02627848,27980.0,27979.0,0.35471056]
[1680712718063,0.014945,27985.0,27980.0,0.07627]
[1680712718275,0.02365,27986.0,27984.0,0.17866]
[1680712718276,0.01581756,27986.0,27984.0,0.17866]
[1680712718516,0.01581756,27986.0,27985.0,0.25759316]
[1680712718736,0.01581756,27986.0,27985.0,0.91248372]
[1680712718942,0.01581756,27986.0,27985.0,0.55777316]
[1680712719366,0.01581756,27986.0,27985.0,0.65489056]
[1680712719808,0.00021,27994.0,27985.0,0.65489056]
[1680712720018,0.73943606,27997.0,27986.0,0.79660737]
[1680712720205,0.35646907,27996.0,27986.0,0.79660737]
[1680712720445,0.35667907,27996.0,27986.0,0.79660737]
[1680712720653,0.41061737,27993.0,27986.0,0.44189681]
[1680712720867,0.41061737,27993.0,27986.0,0.44207681]
[1680712721098,0.41061737,27993.0,27986.0,0.14207681]
[1680712721315,0.41061737,27993.0,27987.0,0.71197554]
[1680712721316,0.45558562,27992.0,27987.0,0.71197554]
[1680712721517,0.41048737,27992.0,27987.0,0.00018]
[1680712721729,0.41048737,27992.0,27985.0,0.32566605]
[1680712721730,0.15,27991.0,27985.0,0.32566605]
[1680712721932,0.41048737,27990.0,27987.0,0.3651428]
[1680712722140,0.41048737,27990.0,27987.0,0.3653228]
[1680712722141,0.35471056,27990.0,27987.0,0.3653228]
[1680712723246,0.36542856,27990.0,27987.0,0.3653228]
[1680712723487,0.36542856,27990.0,27987.0,0.3933228]
[1680712723698,0.36542856,27990.0,27987.0,0.00018]
[1680712723906,0.44256806,27989.0,27987.0,0.026]
[1680712724316,0.00021,27990.0,27988.0,0.07550105]
[1680712724525,0.35471056,27989.0,27987.0,0.026]
[1680712724743,0.35471056,27989.0,27986.0,0.34477238]
[1680712724957,0.35471056,27989.0,27987.0,0.026]
[1680712724958,0.76637167,27989.0,27987.0,0.026]
[1680712725167,0.76637167,27989.0,27987.0,0.00012]
[1680712725373,0.76637167,27989.0,27988.0,0.028]
[1680712725789,0.00021,27990.0,27988.0,0.028]
[1680712726015,0.33551978,27991.0,27988.0,0.23964095]
[1680712726439,0.00021,27992.0,27988.0,0.23964095]
[1680712726440,0.00021,27992.0,27989.0,0.34298603]
[1680712726644,0.00013,27993.0,27989.0,0.45784581]
[1680712726645,0.37992328,27993.0,27989.0,0.45784581]
[1680712726855,0.34119191,27992.0,27989.0,0.59974262]
[1680712727065,0.34119191,27992.0,27989.0,0.45802581]
[1680712727284,0.00034,27993.0,27989.0,0.45802581]
[1680712727492,0.00013,27993.0,27989.0,0.45784581]
[1680712727702,0.38829551,27993.0,27989.0,0.45784581]
[1680712727914,0.38829551,27993.0,27989.0,0.45802581]
[1680712728131,0.00013,27993.0,27989.0,0.45802581]
[1680712728335,0.00013,27993.0,27989.0,0.48602581]
[1680712728795,0.00013,27993.0,27991.0,0.10296953]
[1680712730081,0.00013,27993.0,27991.0,0.13096953]
[1680712730901,0.37153471,27993.0,27991.0,0.13096953]
[1680712731121,0.37153471,27993.0,27991.0,0.028]
[1680712731748,0.37153471,27993.0,27991.0,0.36570643]
[1680712731958,0.37153471,27993.0,27991.0,0.36588643]
[1680712731959,0.00013,27993.0,27991.0,0.36588643]
[1680712732162,0.00013,27993.0,27992.0,0.1685436]
[1680712732782,0.00013,27993.0,27991.0,0.02812]
[1680712732783,0.00013,27993.0,27991.0,0.00018]
[1680712733096,0.00013,27993.0,27991.0,0.13803038]
[1680712733304,0.00013,27993.0,27991.0,0.11003038]
[1680712733513,0.00013,27993.0,27992.0,0.028]
[1680712733977,0.74152426,27993.0,27992.0,0.028]
[1680712734182,0.74152426,27993.0,27989.0,0.00018]
[1680712734391,0.40761756,27992.0,27991.0,0.028]
[1680712734598,0.40761756,27992.0,27989.0,0.00018]
[1680712734802,0.050644,27991.0,27989.0,0.00018]
[1680712735017,0.35471056,27990.0,27989.0,0.00018]
[1680712735767,0.35471056,27990.0,27989.0,0.22695284]
[1680712736377,0.35471056,27990.0,27989.0,0.00018]
[1680712736608,0.35471056,27990.0,27989.0,0.00012]
[1680712736809,0.35471056,27990.0,27988.0,0.00018]
[1680712736810,0.79113458,27990.0,27988.0,0.00018]
[1680712737039,0.79113458,27990.0,27982.0,0.00018]
[1680712737040,0.10771081,27989.0,27982.0,0.00018]
[1680712737361,0.10771081,27989.0,27979.0,0.04490519]
[1680712737362,0.44456302,27990.0,27981.0,0.40054167]
[1680712737363,0.38954037,27988.0,27981.0,0.40054167]
[1680712737583,0.03778,27987.0,27982.0,0.161103]
[1680712737790,0.35471056,27986.0,27982.0,0.161283]
[1680712738014,0.037806,27985.0,27980.0,0.00018]
[1680712738229,0.41048737,27984.0,27981.0,0.13947374]
[1680712738446,0.00021,27984.0,27982.0,0.22166211]
[1680712738691,0.00021,27988.0,27982.0,0.22166211]
[1680712738917,0.35471056,27987.0,27983.0,0.14189681]
[1680712739133,0.039122,27986.0,27982.0,0.14189681]
[1680712739340,0.35471056,27985.0,27982.0,0.2516604]
[1680712739548,0.036722,27984.0,27982.0,0.2516604]
[1680712739758,0.35492056,27984.0,27983.0,0.026]
[1680712739969,0.39203856,27984.0,27983.0,0.026]
[1680712740195,0.35492056,27984.0,27982.0,0.2517804]
[1680712740369,0.35492056,27984.0,27982.0,0.2796604]
[1680712740604,0.35492056,27984.0,27982.0,0.2516604]
[1680712741021,0.35492056,27984.0,27980.0,0.00018]
[1680712741022,0.35471056,27983.0,27980.0,0.00018]
[1680712741266,0.35471056,27983.0,27980.0,0.30103961]
[1680712741477,0.35492056,27983.0,27980.0,0.30103961]
[1680712742544,0.42141737,27983.0,27979.0,0.00018]
[1680712742727,0.036099,27982.0,27976.0,0.00018]
[1680712742953,0.41048737,27981.0,27980.0,0.028]
[1680712743188,0.39133356,27981.0,27980.0,0.028]
[1680712743831,0.036623,27981.0,27977.0,0.00018]
[1680712744043,0.01072,27984.0,27980.0,0.30274578]
[1680712744262,0.01072,27984.0,27978.0,0.00012]
[1680712744263,0.35471056,27982.0,27978.0,0.00012]
[1680712744472,0.35471056,27982.0,27980.0,0.028]
[1680712744473,0.048328,27981.0,27980.0,0.028]
[1680712744686,0.35471056,27981.0,27980.0,0.028]
[1680712744898,0.00021,27983.0,27980.0,0.028]
[1680712745147,0.35735584,27985.0,27980.0,0.028]
[1680712745378,0.35471056,27984.0,27980.0,0.16989681]
[1680712745586,0.35492056,27984.0,27980.0,0.028]
[1680712745794,0.35492056,27984.0,27975.0,0.15]
[1680712745795,0.034747,27983.0,27975.0,0.48572]
[1680712746009,0.35492056,27984.0,27977.0,0.028]
[1680712746010,0.05577681,27982.0,27977.0,0.028]
[1680712746254,0.05577681,27982.0,27978.0,0.021879]
[1680712746465,0.05577681,27982.0,27976.0,0.3]
[1680712746466,0.35492056,27984.0,27980.0,0.028]
[1680712746701,0.35492056,27984.0,27977.0,0.15]
[1680712746924,0.80042121,27984.0,27978.0,0.22182837]
[1680712747135,0.80042121,27984.0,27978.0,0.36372518]
[1680712747354,0.7446444,27984.0,27978.0,0.36372518]
[1680712747571,0.80042121,27984.0,27978.0,0.36372518]
[1680712749219,0.531218,27989.0,27979.0,0.81821337]
[1680712749220,0.00021,27985.0,27979.0,0.81821337]
[1680712749463,0.00021,27988.0,27980.0,0.172957]
[1680712749697,0.32587762,27989.0,27981.0,0.51936337]
[1680712749940,0.32608762,27989.0,27982.0,0.171999]
[1680712750160,0.32608762,27989.0,27983.0,0.14189681]
[1680712750644,0.00021,27989.0,27983.0,0.14189681]
[1680712750873,0.35471056,27991.0,27984.0,0.019859]
[1680712750874,0.00021,27990.0,27984.0,0.019859]
[1680712751116,0.00021,27990.0,27985.0,0.14189681]
[1680712751358,0.00021,27990.0,27986.0,0.021972]
[1680712751568,0.00021,27990.0,27986.0,0.51857937]
[1680712751797,0.00021,27990.0,27987.0,0.021522]
[1680712752251,0.1715212,28001.0,27988.0,0.59016566]
[1680712752252,0.74303997,28001.0,27988.0,0.59016566]
[1680712752470,0.39416967,27999.0,27989.0,0.47052681]
[1680712752682,0.39416967,27999.0,27990.0,0.37666956]
[1680712752893,0.39416967,27999.0,27991.0,0.16318381]
[1680712753114,0.39416967,27999.0,27991.0,0.49678737]
[1680712753115,0.33971321,27998.0,27991.0,0.49678737]
[1680712753323,0.39549002,27998.0,27992.0,0.022412]
[1680712753532,0.39549002,27998.0,27993.0,0.14189681]
[1680712753533,0.33971321,27998.0,27993.0,0.14189681]
[1680712753753,0.3995,28001.0,27993.0,0.14207681]
[1680712754019,0.44518452,27999.0,27994.0,0.14189681]
[1680712754234,0.44518452,27999.0,27994.0,0.14207681]
[1680712754462,0.46004367,28002.0,27994.0,0.14207681]
[1680712754676,0.02371,28004.0,27994.0,0.14207681]
[1680712754887,0.37344458,28001.0,27995.0,0.30725408]
[1680712755097,0.37344458,28001.0,27996.0,0.021294]
[1680712755279,0.37344458,28001.0,27996.0,0.14207681]
[1680712755702,0.37344458,28001.0,27996.0,0.00018]
[1680712756123,0.37344458,28001.0,27996.0,0.02818]
[1680712756339,0.37344458,28001.0,27996.0,0.00018]
[1680712756574,0.37344458,28001.0,27996.0,0.02818]
[1680712757210,0.37344458,28001.0,27996.0,0.17432094]
[1680712757422,0.37344458,28001.0,27997.0,0.04012092]
[1680712757649,0.039609,28000.0,27997.0,0.04012092]
[1680712757777,0.35471056,27999.0,27997.0,0.00018]
[1680712757994,0.37344458,28001.0,27997.0,0.31533239]
[1680712758216,0.37344458,28001.0,27997.0,0.31551239]
[1680712758797,0.37344458,28001.0,27997.0,0.34351239]
[1680712759814,0.37344458,28001.0,27998.0,0.14689028]
[1680712760030,0.03563,27999.0,27998.0,0.00018]
[1680712760249,0.37344458,28001.0,27998.0,0.00018]
[1680712760709,0.038424,28000.0,27997.0,0.13068866]
[1680712760926,0.40202758,28001.0,27997.0,0.13068866]
[1680712761140,0.40202758,28001.0,27998.0,0.29874606]
[1680712761349,0.40202758,28001.0,27999.0,0.020366]
[1680712761350,0.028583,28001.0,27999.0,0.020366]
[1680712761554,0.028583,28001.0,27998.0,0.1377168]
[1680712761991,0.028583,28001.0,27999.0,0.015466]
[1680712762190,0.028583,28001.0,27996.0,0.3]
[1680712762191,0.028583,28001.0,27998.0,0.2200729]
[1680712762404,0.028583,28001.0,27998.0,0.2202529]
[1680712762615,0.028583,28001.0,27999.0,0.015343]
[1680712762832,0.48376552,28001.0,27999.0,0.028]
[1680712763045,0.43232017,28000.0,27995.0,0.23071781]
[1680712763266,0.43232017,28000.0,27998.0,0.028]
[1680712763267,0.84280754,28000.0,27998.0,0.028]
[1680712763469,0.78703073,28000.0,27998.0,0.028]
[1680712763674,0.78721073,28000.0,27996.0,0.00018]
[1680712763899,0.78721073,28000.0,27993.0,0.03573432]
[1680712763900,0.41048737,27999.0,27993.0,0.03573432]
[1680712764138,0.41048737,27999.0,27993.0,0.03555432]
[1680712764139,0.043169,27998.0,27993.0,0.03555432]
[1680712764349,0.41048737,27997.0,27991.0,0.08605937]
[1680712764562,0.03942,27996.0,27991.0,0.08605937]
[1680712764768,0.05577681,27995.0,27988.0,0.39108]
[1680712764977,0.43509375,27994.0,27990.0,0.09165511]
[1680712765191,0.43509375,27994.0,27993.0,0.02]
[1680712765192,0.42153394,27994.0,27993.0,0.02]
[1680712765411,0.042217,27994.0,27988.0,0.00018]
[1680712765621,0.042217,27994.0,27991.0,0.02]
[1680712765622,0.010716,27994.0,27991.0,0.02]
[1680712765862,0.044056,27993.0,27988.0,0.07909841]
[1680712766073,0.044056,27993.0,27987.0,0.30018]
[1680712766074,0.044056,27993.0,27990.0,0.02]
[1680712766075,0.045208,27992.0,27990.0,0.02]
[1680712766280,0.42709756,27991.0,27990.0,0.02]
[1680712766486,0.041871,27990.0,27985.0,0.08224611]
[1680712766721,0.010719,27988.0,27981.0,0.12974676]
[1680712766932,0.41048737,27987.0,27981.0,0.00174109]
[1680712767144,0.41048737,27987.0,27980.0,0.0290473]
[1680712767145,0.052675,27986.0,27980.0,0.0290473]
[1680712767358,0.052675,27986.0,27978.0,0.12800567]
[1680712767359,0.41048737,27985.0,27978.0,0.12800567]
[1680712767566,0.41048737,27985.0,27978.0,0.02364797]
[1680712767567,0.41066737,27985.0,27978.0,0.02364797]
[1680712767779,0.41636087,27984.0,27981.0,0.02]
[1680712768025,0.041615,27982.0,27981.0,0.02]
[1680712768233,0.041615,27982.0,27978.0,0.02364797]
[1680712768234,0.35489056,27982.0,27978.0,0.02364797]
[1680712768449,0.35489056,27982.0,27976.0,0.13696277]
[1680712768450,0.35471056,27981.0,27979.0,0.02607394]
[1680712768657,0.00018,27981.0,27979.0,0.02607394]
[1680712768856,0.39208523,27984.0,27979.0,0.02607394]
[1680712768857,0.00018,27983.0,27979.0,0.02607394]
[1680712769066,0.002,27982.0,27981.0,0.018]
[1680712769313,0.35689056,27982.0,27981.0,0.018]
[1680712769520,0.40121656,27982.0,27981.0,0.018]
[1680712769749,0.046506,27982.0,27981.0,0.018]
[1680712769957,0.00218,27982.0,27981.0,0.018]
[1680712770167,0.00018,27982.0,27981.0,0.04308287]
[1680712770379,0.00018,27983.0,27981.0,0.02723087]
[1680712770803,0.002,27982.0,27981.0,0.04523087]
[1680712772276,0.00018,27987.0,27983.0,0.016347]
[1680712772433,0.00018,27987.0,27984.0,0.024647]
[1680712772645,0.35808513,27987.0,27984.0,0.024647]
[1680712772847,0.00018,27987.0,27984.0,0.024647]
[1680712773002,0.38021981,27987.0,27984.0,0.024647]
[1680712773442,0.00018,27987.0,27984.0,0.024647]
[1680712773655,0.00218,27987.0,27984.0,0.024647]
[1680712773858,0.71640599,27987.0,27984.0,0.024647]
[1680712774066,0.73190336,27986.0,27979.0,0.52610567]
[1680712774318,0.05595681,27986.0,27984.0,0.04805481]
[1680712774467,0.00018,27987.0,27984.0,0.03005481]
[1680712774675,0.00018,27987.0,27984.0,0.04805481]
[1680712774883,0.45030829,27987.0,27981.0,0.165249]
[1680712775076,0.00018,27987.0,27981.0,0.15]
[1680712775281,0.3907,27991.0,27983.0,0.015862]
[1680712775282,0.00018,27990.0,27983.0,0.015862]
[1680712775485,0.33146183,27989.0,27985.0,0.014747]
[1680712775726,0.33164183,27989.0,27986.0,0.014735]
[1680712776713,0.33164183,27989.0,27987.0,0.35471056]
[1680712776928,0.33164183,27989.0,27988.0,0.315708]
[1680712776929,0.00018,27989.0,27988.0,0.315708]
[1680712777127,0.00018,27992.0,27988.0,0.82041856]
[1680712777340,0.00018,27992.0,27989.0,0.51146837]
[1680712777552,0.00018,27992.0,27990.0,0.015956]
[1680712777760,0.00018,27996.0,27990.0,0.015956]
[1680712777971,0.00018,27996.0,27989.0,0.35471056]
[1680712777972,0.00018,27996.0,27991.0,0.14189681]
[1680712778183,0.42935795,27995.0,27991.0,0.14189681]
[1680712778388,0.42953795,27995.0,27991.0,0.14189681]
[1680712778612,0.42953795,27995.0,27989.0,0.50471056]
[1680712778814,0.00018,27995.0,27991.0,0.35471056]
[1680712779022,0.42284439,27997.0,27991.0,0.35471056]
[1680712779228,0.37855164,27995.0,27991.0,0.49660737]
[1680712779435,0.37873164,27995.0,27991.0,0.35471056]
[1680712779688,0.001,27992.0,27991.0,0.35471056]
[1680712779920,0.00018,27993.0,27991.0,0.37060156]
[1680712780136,0.00018,27993.0,27992.0,0.015794]
[1680712780552,2.38568737,28000.0,27988.0,0.3]
[1680712780553,0.40968492,27994.0,27988.0,0.3]
[1680712780788,0.40968492,27994.0,27990.0,0.35471056]
[1680712780789,0.05595681,27994.0,27990.0,0.35471056]
[1680712781007,0.00018,27994.0,27992.0,0.026]
[1680712781236,0.001,27993.0,27992.0,0.041309]
[1680712781884,0.001,27993.0,27992.0,0.026]
[1680712782099,0.001,27993.0,27992.0,0.042138]
[1680712782309,0.001,27993.0,27992.0,0.026]
[1680712782522,0.00018,27994.0,27990.0,0.35471056]
[1680712782732,0.00018,27994.0,27991.0,0.014909]
[1680712782733,0.00118,27994.0,27991.0,0.014909]
[1680712782930,0.00018,27994.0,27992.0,0.015713]
[1680712783137,0.001,27993.0,27992.0,0.041713]
[1680712783595,0.00018,27994.0,27991.0,0.35471056]
[1680712783816,0.00118,27994.0,27991.0,0.38071056]
[1680712784028,0.00018,27994.0,27991.0,0.35471056]
[1680712784238,0.42268361,27994.0,27989.0,0.01603]
[1680712784451,0.39158106,27993.0,27988.0,0.3]
[1680712784687,0.44753787,27993.0,27989.0,0.015344]
[1680712785141,0.39176106,27993.0,27989.0,0.015344]
[1680712785563,0.39176106,27993.0,27988.0,0.3]
[1680712785788,0.44853787,27993.0,27989.0,0.041201]
[1680712786025,0.39276106,27993.0,27990.0,0.015534]
[1680712787314,0.74747162,27993.0,27989.0,0.026]
[1680712787749,0.74647162,27993.0,27989.0,0.016019]
[1680712787981,0.35471056,27992.0,27986.0,0.09417874]
[1680712788195,0.47768099,27991.0,27987.0,0.015904]
[1680712788378,0.35471056,27990.0,27987.0,0.015904]
[1680712788635,0.35471056,27990.0,27986.0,0.00877975]
[1680712788636,0.35489056,27990.0,27986.0,0.00877975]
[1680712788848,0.35489056,27990.0,27985.0,0.00903627]
[1680712789295,0.41066737,27990.0,27985.0,0.00903627]
[1680712789513,0.41166737,27990.0,27987.0,0.024]
[1680712789730,0.35589056,27990.0,27987.0,0.024]
[1680712789922,0.35489056,27990.0,27985.0,0.00903627]
[1680712790252,0.41166737,27990.0,27986.0,0.014663]
[1680712790450,0.35489056,27990.0,27986.0,0.014663]
[1680712790660,0.35589056,27990.0,27987.0,0.024]
[1680712790863,0.35489056,27990.0,27985.0,0.09425526]
[1680712791076,0.78229966,27990.0,27986.0,0.015376]
[1680712791499,0.4285891,27990.0,27986.0,0.015376]
[1680712791731,0.00118,27990.0,27986.0,0.015376]
[1680712791957,0.00118,27990.0,27987.0,0.016102]
[1680712792186,0.00118,27990.0,27987.0,0.10132099]
[1680712792402,0.001,27990.0,27988.0,0.165448]
[1680712792624,0.00018,27992.0,27988.0,0.15]
[1680712792881,0.00018,27992.0,27989.0,0.016018]
[1680712793485,0.001,27990.0,27989.0,0.016018]
[1680712793685,0.001,27990.0,27989.0,0.166018]
[1680712793897,0.00018,27993.0,27989.0,0.166018]
[1680712794114,0.001,27992.0,27990.0,0.37048456]
[1680712794320,2.1252,28000.0,27990.0,0.37048456]
[1680712794321,0.00018,27996.0,27991.0,0.014977]
[1680712794541,0.36626283,27996.0,27992.0,0.14189681]
[1680712794769,0.35489056,27996.0,27992.0,0.14189681]
[1680712795022,0.75022718,27996.0,27989.0,0.10921899]
[1680712795235,0.42106807,27995.0,27990.0,0.10006899]
[1680712795446,0.42124807,27995.0,27991.0,0.016236]
[1680712795657,0.42124807,27995.0,27989.0,0.23720152]
[1680712795863,0.47702488,27995.0,27990.0,0.015732]
[1680712796068,0.33731026,27994.0,27990.0,0.015732]
[1680712796281,0.00092971,27993.0,27990.0,0.015732]
[1680712796482,0.33731026,27994.0,27990.0,0.015732]
[1680712796688,0.33731026,27994.0,27990.0,0.10095099]
[1680712796915,0.33731026,27994.0,27992.0,0.0501]
[1680712797121,0.33831026,27994.0,27992.0,0.0501]
[1680712797964,0.33731026,27994.0,27992.0,0.0451]
[1680712798181,0.33749026,27994.0,27992.0,0.0451]
[1680712798774,0.00018,27994.0,27992.0,0.0451]
[1680712799022,0.001,27994.0,27993.0,0.015566]
[1680712800142,0.36635834,27996.0,27993.0,0.015566]
[1680712800359,0.001,27994.0,27993.0,0.039566]
[1680712800582,0.001,27994.0,27993.0,0.040022]
[1680712802285,0.38304218,27994.0,27993.0,0.040022]
[1680712802495,0.73775274,27994.0,27993.0,0.0726]
[1680712802929,0.78161674,27994.0,27993.0,0.0726]
[1680712803140,0.73775274,27994.0,27993.0,0.0726]
[1680712803360,0.42149696,27994.0,27993.0,0.0726]
[1680712803580,0.15,27993.0,27989.0,6e-05]
[1680712803812,0.15,27993.0,27985.0,0.12780253]
[1680712803813,0.35471056,27990.0,27985.0,0.00018]
[1680712804065,0.11322981,27989.0,27984.0,0.00018]
[1680712804276,0.35471056,27988.0,27984.0,0.00018]
[1680712804510,0.41048737,27988.0,27984.0,0.00018]
[1680712804718,0.41048737,27988.0,27983.0,0.08521899]
[1680712804719,0.041873,27987.0,27983.0,0.08539899]
[1680712804933,0.35471056,27986.0,27983.0,0.08539899]
[1680712805151,0.35471056,27986.0,27983.0,0.00018]
[1680712805622,0.36542956,27986.0,27983.0,0.00018]
[1680712805831,0.36742956,27986.0,27983.0,0.00118]
[1680712806042,0.042785,27985.0,27983.0,0.00118]
[1680712806258,0.35471056,27984.0,27983.0,0.00018]
[1680712806413,0.35471056,27984.0,27983.0,0.00118]
[1680712806629,0.69125792,27984.0,27983.0,0.00118]
[1680712806820,0.41107556,27984.0,27983.0,0.001]
[1680712807003,0.41107556,27984.0,27982.0,0.00018]
[1680712807212,0.042905,27983.0,27981.0,0.00018]
[1680712807448,0.36543156,27982.0,27980.0,0.00012]
[1680712807655,0.044359,27981.0,27980.0,0.00018]
[1680712807905,0.39906956,27981.0,27979.0,0.08539899]
[1680712808061,0.3720201,27984.0,27979.0,0.08539899]
[1680712808062,0.35471056,27980.0,27979.0,0.08539899]
[1680712808879,0.39018162,27980.0,27979.0,0.08639899]
[1680712809084,0.44365662,27980.0,27979.0,0.00118]
[1680712809254,0.82351969,27980.0,27978.0,0.00018]
[1680712809454,0.041047,27979.0,27978.0,0.00018]
[1680712809709,0.39575756,27979.0,27977.0,0.08539899]
[1680712809859,0.39890956,27978.0,27977.0,0.08539899]
[1680712810215,0.35471056,27978.0,27977.0,0.08539899]
[1680712810675,0.54774383,27978.0,27976.0,0.07951899]
[1680712810899,0.54774383,27978.0,27975.0,0.00071492]
[1680712810900,0.032169,27976.0,27975.0,0.00071492]
[1680712811111,0.39887556,27976.0,27975.0,0.00071492]
[1680712811531,0.40959856,27976.0,27975.0,0.00071492]
[1680712811799,0.40977856,27976.0,27975.0,0.00071492]
[1680712812026,0.79693317,27976.0,27975.0,0.00071492]
[1680712812231,0.81321017,27976.0,27975.0,0.00071492]
[1680712812432,0.78621017,27976.0,27975.0,0.00071492]
[1680712812601,0.82393317,27976.0,27975.0,0.00071492]
[1680712813586,0.44527856,27976.0,27975.0,0.00071492]
[1680712813871,0.88855591,27976.0,27975.0,0.00071492]
[1680712814064,0.84428075,27976.0,27975.0,0.00071492]
[1680712814919,0.44527856,27976.0,27975.0,0.00071492]
[1680712815281,0.87439835,27976.0,27975.0,0.00071492]
[1680712815734,0.5539901,27976.0,27975.0,0.00071492]
[1680712816098,0.94428689,27976.0,27975.0,0.00071492]
[1680712816298,0.5539901,27976.0,27975.0,0.00071492]
[1680712816498,0.92983172,27976.0,27975.0,0.00071492]
[1680712816705,0.5539901,27976.0,27975.0,0.00071492]
[1680712817113,1.00593723,27976.0,27975.0,0.00071492]
[1680712817304,0.5541701,27976.0,27975.0,0.00071492]
[1680712818334,0.95431684,27976.0,27975.0,0.00071492]
[1680712818543,0.5541701,27976.0,27975.0,0.00071492]
[1680712818746,0.90334691,27976.0,27975.0,0.00071492]
[1680712819847,0.42605556,27976.0,27975.0,0.00071492]
[1680712820473,0.42587556,27976.0,27975.0,0.00071492]
[1680712820658,0.42605556,27976.0,27975.0,0.00071492]
[1680712820912,0.86654482,27976.0,27975.0,0.00071492]
[1680712822185,0.42013551,27975.0,27971.0,0.01721492]
[1680712822395,0.35471056,27974.0,27971.0,0.01721492]
[1680712823699,0.042594,27973.0,27971.0,0.01721492]
[1680712823908,0.35471056,27972.0,27971.0,0.01721492]
[1680712824978,0.68754261,27972.0,27971.0,0.01721492]
[1680712825410,0.74187161,27972.0,27971.0,0.01721492]
[1680712825623,0.73114661,27972.0,27971.0,0.01721492]
[1680712826099,0.74187161,27972.0,27971.0,0.01721492]
[1680712826319,0.81922147,27972.0,27971.0,0.01721492]
[1680712826537,0.74187161,27972.0,27971.0,0.01721492]
[1680712826752,0.41903956,27972.0,27971.0,0.01721492]
[1680712827834,0.84375892,27972.0,27971.0,0.01721492]
[1680712828046,0.41903956,27972.0,27971.0,0.01721492]
[1680712828253,0.85703021,27972.0,27971.0,0.01721492]
[1680712828688,0.46739612,27972.0,27971.0,0.01721492]
[1680712828896,0.45739612,27972.0,27971.0,0.01721492]
[1680712829108,0.79815923,27972.0,27971.0,0.01721492]
[1680712829309,0.45739612,27972.0,27971.0,0.01721492]
[1680712829527,0.79179291,27972.0,27971.0,0.01721492]
[1680712829738,0.45739612,27972.0,27971.0,0.01721492]
[1680712830191,0.15,27971.0,27962.0,0.66056034]
[1680712830437,0.010726,27969.0,27962.0,0.51056034]
[1680712830646,0.41048737,27968.0,27962.0,0.51056034]
[1680712830920,0.42139337,27968.0,27962.0,0.42548042]
[1680712831128,0.42139337,27968.0,27962.0,0.4165]
[1680712831129,0.35471056,27967.0,27962.0,0.4165]
[1680712831343,0.05577681,27966.0,27962.0,0.4165]
[1680712831537,0.35471056,27965.0,27962.0,0.4165]
[1680712831781,0.35489056,27965.0,27961.0,0.03062189]
[1680712831992,0.41048737,27965.0,27961.0,0.03044189]
[1680712832210,0.35471056,27965.0,27961.0,0.03044189]
[1680712832888,0.35471056,27965.0,27961.0,0.0215]
[1680712833708,0.73245122,27965.0,27961.0,0.0215]
[1680712833915,0.4421095,27964.0,27961.0,0.0215]
[1680712834128,0.35471056,27963.0,27961.0,0.0215]
[1680712834333,0.35471056,27963.0,27962.0,0.016323]
[1680712834549,0.35471056,27963.0,27961.0,0.0215]
[1680712834770,0.35471056,27963.0,27962.0,0.016123]
[1680712835001,0.35471056,27963.0,27961.0,0.0215]
[1680712835216,0.35471056,27963.0,27962.0,0.01602]
[1680712835875,0.00018,27964.0,27961.0,0.0215]
[1680712836100,0.4131235,27965.0,27961.0,0.0215]
[1680712836311,0.001,27963.0,27961.0,0.0215]
[1680712836526,0.76783406,27965.0,27961.0,0.0215]
[1680712836778,0.003,27963.0,27961.0,0.0215]
[1680712836990,0.76783406,27965.0,27961.0,0.0215]
[1680712837233,0.76883406,27965.0,27961.0,0.0215]
[1680712837659,0.35471056,27964.0,27961.0,0.0215]
[1680712838292,0.4426847,27963.0,27961.0,0.0215]
[1680712839154,0.4426847,27963.0,27962.0,0.016355]
[1680712839364,0.35589056,27964.0,27962.0,0.016355]
[1680712839572,0.35471056,27964.0,27961.0,0.0215]
[1680712839781,0.001,27963.0,27961.0,0.0215]
[1680712840199,0.35471056,27964.0,27961.0,0.0215]
[1680712840403,0.35771056,27964.0,27961.0,0.0215]
[1680712840812,0.35471056,27964.0,27961.0,0.0215]
[1680712841021,0.001,27963.0,27961.0,0.0215]
[1680712841235,0.35471056,27964.0,27961.0,0.0215]
[1680712842064,0.36543856,27964.0,27961.0,0.0215]
[1680712842274,0.36543856,27964.0,27962.0,0.09661513]
[1680712842498,0.45980047,27963.0,27962.0,0.09661513]
[1680712842711,0.82523903,27963.0,27962.0,0.09661513]
[1680712842932,0.81451103,27963.0,27961.0,0.0215]
[1680712843495,0.81751103,27963.0,27962.0,0.09661607]
[1680712844106,0.81451103,27963.0,27962.0,0.09661607]
[1680712844383,0.001,27963.0,27961.0,0.0215]
[1680712844604,0.00018,27967.0,27962.0,0.015949]
[1680712844832,0.35471056,27967.0,27963.0,0.22697673]
[1680712845047,0.35489056,27967.0,27964.0,0.1128686]
[1680712845253,0.35489056,27967.0,27964.0,0.0966666]
[1680712845464,0.35489056,27967.0,27965.0,0.1123686]
[1680712845677,0.36849671,27966.0,27963.0,0.08525992]
[1680712845894,0.36849671,27966.0,27963.0,0.08507992]
[1680712845895,0.35471056,27965.0,27963.0,0.08507992]
[1680712846138,0.35471056,27965.0,27961.0,0.19213624]
[1680712846139,0.35489056,27965.0,27964.0,0.003]
[1680712846365,0.35471056,27965.0,27961.0,0.0215]
[1680712846573,0.41048737,27965.0,27961.0,0.0215]
[1680712846780,0.35471056,27965.0,27961.0,0.0215]
[1680712846991,0.35571056,27965.0,27964.0,0.003]
[1680712847200,0.39755956,27965.0,27964.0,0.003]
[1680712847417,0.39673956,27965.0,27961.0,0.0215]
[1680712847619,0.35789056,27965.0,27961.0,0.0245]
[1680712848266,0.44705088,27964.0,27961.0,0.0245]
[1680712848521,0.35471056,27963.0,27961.0,0.0245]
[1680712848998,0.35471056,27963.0,27962.0,0.08507992]
[1680712849215,0.35489056,27963.0,27962.0,0.08507992]
[1680712849404,0.00018,27963.0,27962.0,0.08507992]